bitfinex/quotes_SOLUSD_20250814
["timestamp","ask_amount","ask_price","bid_price","bid_amount"]
[1755168766430,0.49554013,201.92,201.86,15.14333627]
[1755168766648,15.6388764,201.92,201.86,15.14333627]
[1755168766965,0.49554013,201.92,201.87,15.14333627]
[1755168767144,0.69,201.91,201.81,26.31]
[1755168767343,15.14333627,201.89,201.82,15.14333627]
[1755168767526,0.49554013,201.88,201.79,0.31]
[1755168767719,0.49554013,201.88,201.84,15.14333627]
[1755168767923,0.69,201.89,201.84,15.14333627]
[1755168768229,0.69,201.88,201.84,15.14333627]
[1755168768749,0.49554013,201.9,201.85,15.14333627]
[1755168768922,15.535239,201.91,201.87,15.14333627]
[1755168768923,0.49554013,201.91,201.87,15.14333627]
[1755168769129,1.18554013,201.9,201.81,26.0]
[1755168769328,15.14333627,201.87,201.81,26.0]
[1755168769643,16.3288764,201.89,201.81,26.0]
[1755168769856,15.14333627,201.87,201.81,26.0]
[1755168770157,4.95417389,201.85,201.8,15.14333627]
[1755168770328,1.18554013,201.84,201.78,186.59405548]
[1755168770649,0.49554013,201.85,201.81,15.14333627]
[1755168770845,1.18554013,201.85,201.81,15.14333627]
[1755168771041,1.18554013,201.85,201.78,186.59405548]
[1755168771531,0.69,201.85,201.8,15.14333627]
[1755168771736,1.18554013,201.85,201.8,15.14333627]
[1755168771928,0.69,201.84,201.78,186.59405548]
[1755168772257,15.14333627,201.82,201.78,186.59405548]
[1755168772436,15.10621557,201.87,201.78,186.59405548]
[1755168772631,0.69,201.85,201.8,15.14333627]
[1755168772951,15.6388764,201.86,201.8,15.14333627]
[1755168772952,0.49554013,201.84,201.8,15.14333627]
[1755168773247,1.18554013,201.84,201.8,15.14333627]
[1755168773447,0.69,201.83,201.79,15.14333627]
[1755168773838,15.83333627,201.86,201.79,15.14333627]
[1755168774032,0.49554013,201.85,201.79,15.14333627]
[1755168774353,0.49554013,201.91,201.84,15.14333627]
[1755168774549,0.49554013,201.91,201.82,0.31]
[1755168774849,15.6388764,201.93,201.87,15.14333627]
[1755168775039,0.49554013,201.93,201.87,15.14333627]
[1755168775228,0.69,201.94,201.9,15.14333627]
[1755168775424,0.69,201.94,201.85,0.31]
[1755168775756,0.69,201.94,201.89,15.14333627]
[1755168775951,0.49554013,201.95,201.89,15.14333627]
[1755168776129,0.49554013,201.95,201.9,15.14333627]
[1755168776329,1.18554013,201.95,201.89,15.14333627]
[1755168776760,15.530832,201.98,201.91,15.14333627]
[1755168777051,14.840832,201.98,201.92,26.0]
[1755168777255,0.69,201.97,201.89,39.34]
[1755168777423,15.14333627,201.94,201.88,15.14333627]
[1755168777624,15.14333627,201.94,201.87,41.14333627]
[1755168777829,0.69,201.95,201.87,41.14333627]
[1755168777830,15.83333627,201.95,201.89,15.14333627]
[1755168778030,0.69,201.95,201.89,15.14333627]
[1755168778332,1.18554013,201.95,201.89,15.14333627]
[1755168778534,0.69,201.95,201.89,15.14333627]
[1755168778731,0.69,201.95,201.87,26.0]
[1755168778936,15.14333627,201.94,201.87,41.14333627]
[1755168779145,16.3288764,201.95,201.88,15.14333627]
[1755168779346,0.69,201.95,201.88,15.14333627]
[1755168779533,0.69,201.95,201.86,0.03]
[1755168779534,15.14333627,201.89,201.86,0.03]
[1755168779729,15.14333627,201.87,201.86,0.03]
[1755168779951,15.83333627,201.87,201.86,0.03]
[1755168780256,0.49554013,201.88,201.86,0.03]
[1755168780457,79.6,201.99,201.86,0.03]
[1755168780458,0.71,201.95,201.87,15.14333627]
[1755168780628,15.10621557,201.99,201.94,15.14333627]
[1755168780629,14.840832,201.99,201.94,15.14333627]
[1755168780829,0.55554013,202.0,201.96,15.14333627]
[1755168780830,0.06,202.0,201.96,15.14333627]
[1755168781054,0.06,202.0,201.95,15.14333627]
[1755168781478,0.06,202.0,201.99,41.14333627]
[1755168781829,0.06,202.0,201.99,26.0]
[1755168782136,0.06,202.0,201.99,41.14333627]
[1755168782331,0.06,202.0,201.99,41.45333627]
[1755168782531,0.06,202.0,201.99,15.45333627]
[1755168782765,0.06,202.0,201.96,65.32]
[1755168783144,0.06,202.0,201.97,9.97014662]
[1755168783334,0.06,202.0,201.98,9.97014662]
[1755168783735,0.06,202.0,201.97,9.97014662]
[1755168784541,0.06,202.0,201.96,26.0]
[1755168784542,10.74014662,202.0,201.96,26.0]
[1755168784739,0.06,202.0,201.98,15.1193922]
[1755168785071,0.06,202.0,201.99,41.1193922]
[1755168785272,0.06,202.0,201.99,15.4293922]
[1755168785738,0.06,202.0,201.99,15.1193922]
[1755168786052,0.06,202.0,201.99,41.1193922]
[1755168786241,0.06,202.0,201.99,0.31]
[1755168786443,0.06,202.05,201.99,0.31]
[1755168786444,0.06,202.05,201.99,56.53560777]
[1755168786757,0.06,202.2,202.07,26.0]
[1755168786937,0.49554013,202.19,202.12,26.0]
[1755168787131,0.06,202.2,202.18,15.1193922]
[1755168787335,0.55554013,202.2,202.19,15.1193922]
[1755168787641,6.44493233,202.29,202.22,26.0]
[1755168787842,7.52142827,202.31,202.25,15.1193922]
[1755168788141,7.52142827,202.31,202.22,26.0]
[1755168788142,7.52142827,202.31,202.26,15.1193922]
[1755168788457,2.57851888,202.31,202.23,39.3]
[1755168788646,2.57851888,202.31,202.28,15.1193922]
[1755168788861,2.57851888,202.31,202.3,15.1193922]
[1755168789041,39.32,202.36,202.3,15.1193922]
[1755168789372,12.35038021,202.43,202.24,0.67]
[1755168789373,4.94022329,202.42,202.32,15.1193922]
[1755168789543,3.53380908,202.41,202.28,39.3]
[1755168789871,15.1193922,202.39,202.28,39.3]
[1755168790081,0.71,202.4,202.34,15.1193922]
[1755168790362,0.71,202.4,202.36,15.1193922]
[1755168791137,0.71,202.43,202.38,15.1193922]
[1755168791339,0.71,202.42,202.38,15.1193922]
[1755168791761,0.06,202.44,202.38,15.1193922]
[1755168791948,0.71,202.41,202.34,39.3]
[1755168792147,4.99974427,202.44,202.39,15.1193922]
[1755168792343,0.71,202.43,202.38,15.1193922]
[1755168792664,0.71,202.42,202.34,65.3]
[1755168792860,0.71,202.42,202.39,15.1193922]
[1755168793046,4.99974427,202.44,202.34,65.3]
[1755168793047,0.06,202.44,202.4,15.1193922]
[1755168793436,0.77,202.44,202.39,15.1193922]
[1755168793738,0.06,202.44,202.43,15.1193922]
[1755168794248,0.06,202.44,202.43,41.1193922]
[1755168794638,0.06,202.44,202.43,41.7893922]
[1755168794844,0.06,202.44,202.43,54.3793922]
[1755168795036,0.06,202.44,202.43,15.1193922]
[1755168795449,0.06,202.44,202.43,54.3793922]
[1755168795860,0.06,202.44,202.38,15.1193922]
[1755168795861,15.8893922,202.44,202.38,15.1193922]
[1755168796081,15.1193922,202.42,202.37,15.1193922]
[1755168796236,0.71,202.41,202.3,0.67]
[1755168796441,0.71,202.41,202.37,15.1193922]
[1755168796758,0.06,202.44,202.4,15.1193922]
[1755168796978,0.06,202.44,202.42,15.1193922]
[1755168797343,0.06,202.44,202.41,15.1193922]
[1755168797678,0.06,202.44,202.39,65.24]
[1755168797976,0.06,202.44,202.42,15.1193922]
[1755168798176,0.06,202.44,202.39,65.24]
[1755168798464,0.06,202.44,202.43,15.1193922]
[1755168799043,0.06,202.44,202.43,55.0293922]
[1755168799866,0.06,202.44,202.43,39.91]
[1755168800068,0.06,202.44,202.43,55.0293922]
[1755168801641,0.06,202.44,202.43,59.96937145]
[1755168801842,0.06,202.46,202.45,41.1193922]
[1755168802074,0.06,202.46,202.45,81.50334132]
[1755168802572,0.06,202.46,202.45,71.32344035]
[1755168802880,0.06,202.46,202.45,54.3393922]
[1755168804077,0.06,202.46,202.45,55.0093922]
[1755168804879,0.06,202.46,202.45,54.3393922]
[1755168805469,0.06,202.46,202.45,54.3193922]
[1755168806060,0.06,202.46,202.45,54.9893922]
[1755168806454,0.06,202.47,202.45,60.42283255]
[1755168806663,0.06,202.47,202.46,15.1193922]
[1755168807379,0.77,202.47,202.42,15.1193922]
[1755168807572,15.1193922,202.44,202.39,39.2]
[1755168807746,15.1193922,202.41,202.35,15.1193922]
[1755168807942,0.71,202.41,202.36,54.3193922]
[1755168808266,0.71,202.4,202.36,54.3193922]
[1755168808467,0.71,202.4,202.37,15.1193922]
[1755168808648,0.71,202.45,202.39,41.1193922]
[1755168808979,0.71,202.45,202.42,15.1193922]
[1755168809373,0.71,202.45,202.28,3.88136008]
[1755168809374,30.22560777,202.43,202.28,3.88136008]
[1755168809576,15.1193922,202.33,202.28,3.88136008]
[1755168809794,5.22959058,202.32,202.28,3.88136008]
[1755168810105,0.71,202.31,202.27,39.36]
[1755168810379,5.48678466,202.42,202.3,26.0]
[1755168810380,15.10621557,202.41,202.3,26.0]
[1755168810581,0.66,202.31,202.3,26.0]
[1755168810756,15.7793922,202.31,202.26,39.36]
[1755168810951,0.66,202.3,202.26,39.36]
[1755168811144,0.66,202.29,202.26,39.36]
[1755168811349,0.66,202.29,202.28,26.0]
[1755168811767,0.66,202.33,202.28,26.0]
[1755168811991,0.66,202.32,202.27,15.1193922]
[1755168812246,4.35138502,202.38,202.29,15.1193922]
[1755168812483,4.35138502,202.34,202.31,15.1193922]
[1755168812680,15.10621557,202.38,202.29,26.0]
[1755168812845,0.66,202.33,202.29,26.0]
[1755168813049,0.66,202.33,202.3,41.1193922]
[1755168813250,5.01138502,202.36,202.3,26.0]
[1755168813466,0.66,202.36,202.34,15.1193922]
[1755168813676,0.66,202.36,202.33,15.1193922]
[1755168814176,0.66,202.36,202.32,15.1193922]
[1755168814355,0.66,202.36,202.33,15.1193922]
[1755168815074,0.66,202.36,202.35,15.1193922]
[1755168815255,0.66,202.4,202.35,15.1193922]
[1755168815449,0.66,202.39,202.36,15.1193922]
[1755168815675,0.66,202.43,202.38,15.1193922]
[1755168815874,0.66,202.43,202.4,15.1193922]
[1755168816561,0.66,202.43,202.41,15.1193922]
[1755168817065,0.66,202.43,202.38,26.0]
[1755168817066,15.82621557,202.47,202.42,15.1193922]
[1755168817377,0.66,202.46,202.42,15.1193922]
[1755168817676,15.1193922,202.43,202.39,39.24]
[1755168817880,15.7793922,202.42,202.35,15.1193922]
[1755168818174,15.7793922,202.42,202.38,26.0]
[1755168818363,0.66,202.41,202.38,26.0]
[1755168818671,0.66,202.41,202.35,54.3193922]
[1755168818873,4.80620169,202.41,202.35,39.2]
[1755168819081,19.92559389,202.41,202.35,39.2]
[1755168819257,15.1193922,202.36,202.24,5.67458832]
[1755168819451,15.1193922,202.34,202.27,15.1193922]
[1755168819660,15.7793922,202.33,202.27,15.1193922]
[1755168819965,15.7793922,202.33,202.27,54.3193922]
[1755168820163,15.1193922,202.31,202.24,15.1493922]
[1755168820469,19.46463549,202.3,202.24,15.1493922]
[1755168820672,5.00524329,202.3,202.24,15.1493922]
[1755168820873,15.7793922,202.3,202.24,0.03]
[1755168821171,15.1193922,202.28,202.24,0.03]
[1755168821372,15.7793922,202.27,202.24,0.03]
[1755168821675,4.94316501,202.3,202.13,2.57091282]
[1755168821676,30.22560777,202.25,202.16,15.1193922]
[1755168821850,30.22560777,202.25,202.11,0.7]
[1755168821851,15.1193922,202.21,202.15,54.3193922]
[1755168822050,0.66,202.2,202.15,39.2]
[1755168822357,0.66,202.2,202.16,15.1193922]
[1755168822763,15.10621557,202.23,202.17,15.1193922]
[1755168823176,15.10621557,202.26,202.2,15.1193922]
[1755168823374,15.10621557,202.26,202.21,15.1193922]
[1755168823567,0.66,202.32,202.25,15.1193922]
[1755168823769,0.66,202.32,202.3,15.1193922]
[1755168824077,0.66,202.35,202.3,15.1193922]
[1755168824279,0.66,202.34,202.27,15.1193922]
[1755168824469,15.1193922,202.33,202.26,15.1193922]
[1755168824784,0.66,202.34,202.25,65.2]
[1755168824785,0.66,202.34,202.3,15.1193922]
[1755168825090,0.66,202.33,202.29,15.1193922]
[1755168825253,15.10621557,202.34,202.29,15.1193922]
[1755168825455,0.66,202.32,202.29,15.1193922]
[1755168825782,15.76621557,202.35,202.3,15.1193922]
[1755168825964,15.10621557,202.33,202.25,65.2]
[1755168826169,0.66,202.32,202.27,15.1193922]
[1755168826670,0.66,202.31,202.26,15.1193922]
[1755168826996,4.9424279,202.33,202.25,65.2]
[1755168827182,0.66,202.32,202.25,65.2]
[1755168827385,0.66,202.32,202.27,15.1193922]
[1755168827577,0.66,202.31,202.26,15.1193922]
[1755168827952,0.66,202.3,202.26,15.1193922]
[1755168828382,0.66,202.29,202.25,80.3193922]
[1755168828555,0.66,202.28,202.25,26.0]
[1755168828764,4.94329059,202.3,202.25,26.0]
[1755168828964,0.66,202.3,202.25,41.1193922]
[1755168829183,0.66,202.3,202.26,15.1193922]
[1755168829505,0.66,202.3,202.25,41.1193922]
[1755168829690,15.7793922,202.33,202.27,15.1193922]
[1755168830188,3.54237142,202.32,202.27,15.1193922]
[1755168830392,15.7793922,202.33,202.21,39.92]
[1755168830563,15.1193922,202.3,202.24,15.1193922]
[1755168830760,0.66,202.32,202.26,15.1193922]
[1755168830971,0.66,202.32,202.23,26.0]
[1755168830972,3.5426297,202.31,202.27,15.1193922]
[1755168831172,3.54803258,202.3,202.26,15.1193922]
[1755168831377,0.66,202.31,202.26,15.1193922]
[1755168831559,3.54803188,202.3,202.26,15.1193922]
[1755168831757,0.66,202.31,202.26,15.1193922]
[1755168832195,3.55053591,202.3,202.28,15.1193922]
[1755168832494,12.35252345,202.39,202.28,15.1193922]
[1755168832495,15.7793922,202.35,202.28,15.1193922]
[1755168832696,3.55095953,202.34,202.3,15.1193922]
[1755168832862,3.55095953,202.33,202.3,15.1193922]
[1755168833062,20.06132564,202.35,202.28,15.1193922]
[1755168833276,20.06132564,202.35,202.22,0.49451092]
[1755168833277,15.1193922,202.31,202.23,65.22]
[1755168833493,3.55158305,202.3,202.24,15.1193922]
[1755168833664,3.55158305,202.29,202.24,15.1193922]
[1755168833996,15.7793922,202.31,202.24,15.1193922]
[1755168834168,3.55133185,202.3,202.24,15.1193922]
[1755168834485,3.55133185,202.29,202.24,15.1193922]
[1755168834689,15.7793922,202.31,202.25,15.1193922]
[1755168834991,3.55132125,202.3,202.25,15.1193922]
[1755168835185,3.55132125,202.29,202.25,15.1193922]
[1755168835485,15.1193922,202.31,202.25,15.1193922]
[1755168835796,5.60270131,202.32,202.25,15.1193922]
[1755168835797,3.55070672,202.3,202.25,15.1193922]
[1755168836103,0.66,202.35,202.29,15.1193922]
[1755168836399,18.67013243,202.34,202.28,15.1193922]
[1755168836567,3.55074023,202.33,202.27,15.1193922]
[1755168836886,23.61279751,202.32,202.26,15.1193922]
[1755168837090,15.1193922,202.3,202.23,26.0]
[1755168837302,15.1193922,202.3,202.23,41.1193922]
[1755168837512,15.1193922,202.3,202.23,26.0]
[1755168837796,0.66,202.29,202.23,41.1193922]
[1755168837963,0.66,202.29,202.23,26.0]
[1755168838374,0.66,202.29,202.2,39.22]
[1755168838375,15.1193922,202.26,202.2,39.22]
[1755168838615,15.1193922,202.24,202.19,0.03]
[1755168838912,15.1193922,202.25,202.19,41.8493922]
[1755168839289,15.1193922,202.24,202.19,26.73]
[1755168839504,15.1193922,202.25,202.19,41.8493922]
[1755168839687,15.1193922,202.24,202.19,0.73]
[1755168839890,15.1193922,202.25,202.2,26.0]
[1755168840094,0.66,202.29,202.21,15.8193922]
[1755168840308,15.1193922,202.28,202.21,15.8193922]
[1755168840778,0.72,202.33,202.27,15.1193922]
[1755168840980,15.1193922,202.35,202.29,15.1193922]
[1755168841194,15.1193922,202.35,202.28,15.1193922]
[1755168841409,15.1193922,202.34,202.27,15.1193922]
[1755168841590,15.1193922,202.35,202.28,15.1193922]
[1755168841916,0.72,202.36,202.3,15.1193922]
[1755168842087,15.1193922,202.39,202.32,15.1193922]
[1755168842291,0.06,202.36,202.32,15.1193922]
[1755168842482,0.06,202.36,202.33,15.1193922]
[1755168843710,0.06,202.36,202.3,0.68]
[1755168843711,0.06,202.33,202.32,26.0]
[1755168843914,0.06,202.33,202.32,41.6136587]
[1755168844274,0.06,202.33,202.32,42.2936587]
[1755168844795,0.06,202.33,202.31,15.1193922]
[1755168845000,0.06,202.33,202.31,26.0]
[1755168845406,0.06,202.33,202.32,15.1193922]
[1755168846301,0.06,202.33,202.31,41.1193922]
[1755168846608,0.06,202.33,202.31,26.0]
[1755168846977,0.06,202.33,202.29,54.3193922]
[1755168847412,0.06,202.33,202.22,0.03]
[1755168847413,15.1193922,202.31,202.24,15.1193922]
[1755168847705,15.1193922,202.28,202.22,0.71]
[1755168848005,15.1193922,202.29,202.23,15.1193922]
[1755168848508,15.1193922,202.31,202.22,0.71]
[1755168848709,15.1193922,202.31,202.25,15.1193922]
[1755168848891,79.6,202.3,202.26,15.1193922]
[1755168849076,94.7193922,202.29,202.23,15.1193922]
[1755168849275,15.1193922,202.28,202.22,54.3493922]
[1755168849600,95.4393922,202.29,202.23,15.1193922]
[1755168849795,94.7193922,202.29,202.23,15.1193922]
[1755168849980,79.6,202.29,202.24,15.1193922]
[1755168850291,79.6,202.29,202.26,15.1193922]
[1755168850484,79.6,202.29,202.25,41.1193922]
[1755168850683,79.6,202.29,202.25,26.0]
[1755168850684,0.72,202.28,202.25,26.0]
[1755168850892,15.1193922,202.28,202.25,26.0]
[1755168851085,94.7193922,202.27,202.22,0.03]
[1755168851314,94.7193922,202.27,202.24,26.0]
[1755168851482,80.32,202.27,202.22,0.03]
[1755168851823,80.32,202.27,202.24,26.0]
[1755168852375,94.7193922,202.27,202.22,0.03]
[1755168852580,99.6633326,202.27,202.22,0.03]
[1755168852778,84.5439404,202.27,202.22,15.1493922]
[1755168853005,79.6,202.27,202.22,15.1493922]
[1755168853418,80.32,202.27,202.22,15.1493922]
[1755168853600,5.66413131,202.26,202.22,0.03]
[1755168853815,80.32,202.25,202.22,0.03]
[1755168854006,79.6,202.25,202.22,0.03]
[1755168854691,80.32,202.25,202.22,0.03]
[1755168854890,95.4393922,202.25,202.22,0.03]
[1755168855391,94.7193922,202.25,202.22,0.03]
[1755168855598,79.6,202.25,202.23,15.1193922]
[1755168856087,79.6,202.25,202.24,15.1193922]
[1755168856610,79.6,202.25,202.22,15.1493922]
[1755168859607,79.6,202.25,202.22,0.03]
[1755168859786,79.6,202.25,202.22,15.1493922]
[1755168860614,0.72,202.28,202.22,15.1493922]
[1755168860913,10.66643717,202.28,202.22,9.97643717]
[1755168861088,0.72,202.28,202.23,9.94643717]
[1755168861614,80.32,202.27,202.22,0.03]
[1755168861816,0.72,202.26,202.22,0.03]
[1755168862112,9.94643717,202.27,202.22,0.03]
[1755168862412,0.72,202.25,202.22,0.03]
[1755168862915,10.66643717,202.27,202.22,0.03]
[1755168863216,0.72,202.27,202.22,0.03]
[1755168863511,10.66643717,202.26,202.22,0.03]
[1755168864017,0.72,202.26,202.22,0.03]
[1755168865127,15.61076138,202.26,202.22,0.03]
[1755168865292,0.72,202.25,202.22,0.03]
[1755168865823,4.94391158,202.27,202.22,9.97643717]
[1755168865993,4.94391158,202.27,202.22,0.03]
[1755168866195,5.66391158,202.27,202.22,0.03]
[1755168866511,0.06,202.26,202.22,0.03]
[1755168867105,0.06,202.26,202.22,9.97643717]
[1755168867315,0.06,202.26,202.23,9.94643717]
[1755168867508,0.06,202.26,202.25,9.94643717]
[1755168867911,10.72643717,202.26,202.22,0.03]
[1755168868093,19.82,202.2,202.19,0.03]
[1755168870012,19.82,202.2,202.19,10.65643717]
[1755168870212,30.48643717,202.2,202.19,0.03]
[1755168870521,20.54,202.2,202.19,0.03]
[1755168870823,19.82,202.2,202.19,0.03]
[1755168871199,20.48,202.2,202.19,0.03]
[1755168871393,35.37203558,202.2,202.19,0.03]
[1755168872423,15.10621557,202.19,202.17,0.03]
[1755168872730,25.05265274,202.17,202.16,0.03]
[1755168872897,15.10621557,202.16,202.03,35.94643717]
[1755168873098,9.94643717,202.1,202.04,9.94643717]
[1755168873298,9.94643717,202.07,202.02,39.16]
[1755168873495,39.16,202.12,202.04,9.94643717]
[1755168873733,9.94643717,202.11,202.03,0.66]
[1755168873898,9.94643717,202.09,202.02,39.16]
[1755168874097,9.94643717,202.09,202.03,9.94643717]
[1755168874329,9.94643717,202.09,202.02,39.82]
[1755168874639,9.94643717,202.09,202.03,9.94643717]
[1755168874800,9.94643717,202.09,201.96,2.57524443]
[1755168874801,9.94643717,202.07,202.01,35.94643717]
[1755168875001,9.94643717,202.07,202.01,26.0]
[1755168875200,0.66,202.09,202.03,9.94643717]
[1755168875412,10.60643717,202.09,202.03,9.94643717]
[1755168875802,0.66,202.09,202.02,26.0]
[1755168876007,9.94643717,202.08,202.02,35.94643717]
[1755168876208,10.60643717,202.09,202.02,35.94643717]
[1755168876410,10.60643717,202.09,202.01,26.66]
[1755168876604,10.60643717,202.09,202.02,9.94643717]
[1755168876605,9.94643717,202.08,202.02,9.94643717]
[1755168876826,0.66,202.09,202.04,9.94643717]
[1755168877204,39.14,202.11,202.05,9.94643717]
[1755168877840,10.60643717,202.1,202.03,9.94643717]
[1755168878129,0.66,202.1,202.04,9.94643717]
[1755168878310,39.16,202.11,202.05,9.94643717]
[1755168878518,49.10643717,202.11,202.05,9.94643717]
[1755168878707,39.16,202.11,202.05,9.94643717]
[1755168878907,49.10643717,202.11,202.03,0.66]
[1755168879108,0.66,202.1,202.04,9.94643717]
[1755168879910,9.94643717,202.09,202.03,9.94643717]
[1755168880111,10.60643717,202.08,202.02,9.94643717]
[1755168880333,10.60643717,202.08,202.01,26.0]
[1755168880628,0.66,202.08,202.03,9.94643717]
[1755168881014,0.66,202.08,202.03,35.94643717]
[1755168881337,10.60643717,202.12,202.04,0.66]
[1755168881514,10.60643717,202.12,202.05,9.94643717]
[1755168881515,49.08643717,202.11,202.05,9.94643717]
[1755168881842,49.08643717,202.11,202.04,0.66]
[1755168882006,9.94643717,202.11,202.05,9.94643717]
[1755168882208,0.66,202.15,202.1,9.94643717]
[1755168882414,0.66,202.19,202.13,9.94643717]
[1755168882613,0.66,202.19,202.07,26.66]
[1755168882614,9.94643717,202.16,202.07,26.66]
[1755168882911,9.94643717,202.12,202.06,9.94643717]
[1755168883205,39.8,202.15,202.05,9.94643717]
[1755168883206,10.60643717,202.11,202.05,9.94643717]
[1755168883414,9.94643717,202.09,202.03,10.60643717]
[1755168883804,9.94643717,202.09,202.03,9.94643717]
[1755168884013,10.60643717,202.1,202.03,9.94643717]
[1755168884741,0.66,202.1,202.05,9.94643717]
[1755168885436,10.60643717,202.1,202.04,9.94643717]
[1755168885745,0.66,202.1,202.05,9.94643717]
[1755168885946,9.94643717,202.12,202.05,9.94643717]
[1755168886437,9.94643717,202.1,202.03,10.60643717]
[1755168886733,9.94643717,202.1,202.04,9.94643717]
[1755168886946,10.60643717,202.11,202.05,9.94643717]
[1755168887230,99.62349675,202.14,202.04,9.94643717]
[1755168887231,10.60643717,202.1,202.04,9.94643717]
[1755168887431,9.94643717,202.08,202.03,26.0]
[1755168887734,0.66,202.07,202.04,0.03]
[1755168888109,0.66,202.07,202.02,9.94643717]
[1755168888545,10.60643717,202.07,202.01,0.03]
[1755168888746,10.60643717,202.06,202.01,0.03]
[1755168888916,0.66,202.05,202.01,0.03]
[1755168889246,10.60643717,202.08,202.01,9.97643717]
[1755168889413,9.94643717,202.07,202.01,0.03]
[1755168889809,0.66,202.08,202.02,9.94643717]
[1755168890006,0.66,202.08,202.03,9.94643717]
[1755168890232,25.71265274,202.11,202.02,26.0]
[1755168890436,0.66,202.07,202.02,26.0]
[1755168890742,14.829095,202.17,202.05,9.94643717]
[1755168890913,4.89156356,202.23,202.13,9.94643717]
[1755168891112,0.72,202.23,202.14,0.66]
[1755168891320,0.72,202.23,202.18,9.94643717]
[1755168891647,0.72,202.23,202.14,0.66]
[1755168891648,0.72,202.23,202.19,9.94643717]
[1755168891935,0.72,202.23,202.15,0.66]
[1755168892137,0.72,202.23,202.13,65.1]
[1755168892138,0.72,202.23,202.18,9.94643717]
[1755168892325,0.72,202.23,202.19,9.94643717]
[1755168892527,0.06,202.23,202.19,9.94643717]
[1755168892708,0.06,202.23,202.19,10.60643717]
[1755168893112,0.06,202.23,202.19,9.94643717]
[1755168893336,10.66643717,202.23,202.17,35.94643717]
[1755168893542,10.66643717,202.23,202.18,9.94643717]
[1755168893543,0.72,202.23,202.18,9.94643717]
[1755168893730,0.06,202.23,202.19,9.94643717]
[1755168894437,0.06,202.23,202.18,9.94643717]
[1755168895136,0.72,202.2,202.15,9.94643717]
[1755168895642,0.06,202.2,202.19,9.94643717]
[1755168896224,0.06,202.2,202.18,9.94643717]
[1755168897221,0.06,202.2,202.19,9.94643717]
[1755168897427,15.10621557,202.19,202.07,0.66]
[1755168897736,15.10621557,202.19,202.12,26.0]
[1755168897737,0.66,202.18,202.12,26.0]
[1755168897926,5.60627617,202.18,202.12,26.0]
[1755168898241,9.94643717,202.14,202.05,39.08]
[1755168898448,9.94643717,202.14,202.08,9.94643717]
[1755168898636,9.94643717,202.14,202.08,35.94643717]
[1755168898822,9.94643717,202.14,202.08,9.94643717]
[1755168899549,0.66,202.15,202.08,35.94643717]
[1755168899715,9.94643717,202.14,202.08,35.94643717]
[1755168899913,9.94643717,202.13,202.08,26.0]
[1755168900256,79.57,202.19,202.12,9.94643717]
[1755168900420,79.57,202.19,202.15,9.94643717]
[1755168900754,25.05265274,202.16,202.06,9.94643717]
[1755168900927,9.94643717,202.09,202.03,9.94643717]
[1755168901245,95.33621557,202.15,202.08,9.94643717]
[1755168901246,79.57,202.14,202.08,9.94643717]
[1755168901424,79.57,202.14,202.04,26.66]
[1755168901621,79.57,202.14,202.09,9.94643717]
[1755168901823,0.66,202.13,202.09,9.94643717]
[1755168902056,0.66,202.12,202.09,9.94643717]
[1755168902228,0.66,202.12,202.04,26.66]
[1755168902528,0.66,202.12,202.08,9.94643717]
[1755168902821,79.57,202.14,202.09,9.94643717]
[1755168903026,0.66,202.13,202.06,0.66]
[1755168903462,0.66,202.13,202.09,9.94643717]
[1755168903621,0.66,202.13,202.1,9.94643717]
[1755168903818,79.57,202.14,202.12,9.94643717]
[1755168904219,79.57,202.14,202.08,0.66]
[1755168904415,79.57,202.14,202.12,9.94643717]
[1755168904818,79.57,202.14,202.13,9.94643717]
[1755168905018,79.57,202.13,202.12,9.94643717]